[Event "Titled Tuesday Blitz June 6 Early 2023"]
[White "KSho99"]
[Black "Lisjak, Zlatko"]
[BlackFideId "14502186"]
[WhiteElo "2183"]
[BlackElo "1998"]
[Result "1-0"]
[Round "9"]
[TimeControl "180+2"]
[Date "2023.06.06"]
[WhiteClock "0:00:01"]
[BlackClock "0:00:04"]
[Board "144"]

1. Nf3 {[%clk 0:03:00]}  d6 {[%clk 0:02:58]} 2. d4 {[%clk 0:03:00]}  Bg4 {[%clk 0:02:57]} 3. Nbd2 {[%clk 0:02:52]}  Nd7 {[%clk 0:02:56]} 4. h3 {[%clk 0:02:49]}  Bh5 {[%clk 0:02:53]} 5. e4 {[%clk 0:02:34]}  c6 {[%clk 0:02:50]} 6. c3 {[%clk 0:02:31]}  e6 {[%clk 0:02:42]} 7. Bd3 {[%clk 0:02:27]}  d5 {[%clk 0:02:39]} 8. O-O {[%clk 0:02:17]}  Ne7 {[%clk 0:02:15]} 9. Re1 {[%clk 0:02:08]}  Ng6 {[%clk 0:01:49]} 10. exd5 {[%clk 0:01:22]}  cxd5 {[%clk 0:01:44]} 11. Bb5 {[%clk 0:01:09]}  Bxf3 {[%clk 0:01:21]} 12. Nxf3 {[%clk 0:01:06]}  a6 {[%clk 0:01:21]} 13. Bd3 {[%clk 0:00:56]}  Bd6 {[%clk 0:01:19]} 14. Qb3 {[%clk 0:00:39]}  Qc7 {[%clk 0:01:12]} 15. Qxd5 {[%clk 0:00:36]}  O-O {[%clk 0:01:01]} 16. Qb3 {[%clk 0:00:32]}  b5 {[%clk 0:00:57]} 17. Ng5 {[%clk 0:00:17]}  Bf4 {[%clk 0:00:52]} 18. Qd1 {[%clk 0:00:10]}  Nf6 {[%clk 0:00:48]} 19. Ne4 {[%clk 0:00:06]}  Nd5 {[%clk 0:00:46]} 20. Bxf4 {[%clk 0:00:01]}  Ngxf4 {[%clk 0:00:42]} 21. Bf1 {[%clk 0:00:01]}  f5 {[%clk 0:00:37]} 22. Ng3 {[%clk 0:00:01]}  Rf6 {[%clk 0:00:30]} 23. Ne2 {[%clk 0:00:01]}  Rg6 {[%clk 0:00:27]} 24. Nxf4 {[%clk 0:00:02]}  Nxf4 {[%clk 0:00:24]} 25. Qf3 {[%clk 0:00:01]}  Nd5 {[%clk 0:00:18]} 26. Kh1 {[%clk 0:00:01]}  Rf8 {[%clk 0:00:18]} 27. Rad1 {[%clk 0:00:01]}  f4 {[%clk 0:00:17]} 28. Re5 {[%clk 0:00:01]}  h6 {[%clk 0:00:15]} 29. Bd3 {[%clk 0:00:01]}  Rgf6 {[%clk 0:00:14]} 30. Rde1 {[%clk 0:00:01]}  Qd6 {[%clk 0:00:14]} 31. Qe4 {[%clk 0:00:01]}  g6 {[%clk 0:00:12]} 32. Rxe6 {[%clk 0:00:01]}  Rxe6 {[%clk 0:00:11]} 33. Qxe6+ {[%clk 0:00:02]}  Qxe6 {[%clk 0:00:10]} 34. Rxe6 {[%clk 0:00:03]}  Nf6 {[%clk 0:00:08]} 35. Rxa6 {[%clk 0:00:03]}  Re8 {[%clk 0:00:08]} 36. Kh2 {[%clk 0:00:03]}  Kg7 {[%clk 0:00:07]} 37. Bxb5 {[%clk 0:00:02]}  Re1 {[%clk 0:00:06]} 38. Ra7+ {[%clk 0:00:02]}  Kf8 {[%clk 0:00:04]} 39. Bc4 {[%clk 0:00:01]} 1-0


[Site "https://www.chess.com"]

[Event "Titled Tuesday Blitz June 6 Early 2023"]
[White "Paiva, Henrique M A Albergaria"]
[Black "Maluco_do_Natal_00"]
[WhiteFideId "1920995"]
[WhiteElo "2007"]
[BlackElo "2058"]
[Result "1-0"]
[Round "9"]
[TimeControl "180+2"]
[Date "2023.06.06"]
[WhiteClock "0:01:30"]
[BlackClock "0:00:02"]
[Board "146"]

1. b3 {[%clk 0:03:00]}  d5 {[%clk 0:02:58]} 2. Bb2 {[%clk 0:02:55]}  Nf6 {[%clk 0:02:56]} 3. e3 {[%clk 0:02:55]}  Nbd7 {[%clk 0:02:52]} 4. f4 {[%clk 0:02:55]}  g6 {[%clk 0:02:50]} 5. Nf3 {[%clk 0:02:56]}  Bg7 {[%clk 0:02:50]} 6. Be2 {[%clk 0:02:56]}  O-O {[%clk 0:02:40]} 7. O-O {[%clk 0:02:56]}  Re8 {[%clk 0:02:40]} 8. Qe1 {[%clk 0:02:56]}  c5 {[%clk 0:02:33]} 9. f5 {[%clk 0:02:47]}  Qc7 {[%clk 0:02:03]} 10. Qh4 {[%clk 0:02:37]}  Rf8 {[%clk 0:01:56]} 11. fxg6 {[%clk 0:02:28]}  hxg6 {[%clk 0:01:45]} 12. Ng5 {[%clk 0:02:26]}  e5 {[%clk 0:01:31]} 13. Nc3 {[%clk 0:02:23]}  Qd6 {[%clk 0:01:12]} 14. e4 {[%clk 0:02:19]}  d4 {[%clk 0:01:00]} 15. Nd5 {[%clk 0:02:18]}  Re8 {[%clk 0:00:30]} 16. Bc4 {[%clk 0:02:14]}  Re7 {[%clk 0:00:19]} 17. Nxe7+ {[%clk 0:02:12]}  Qxe7 {[%clk 0:00:18]} 18. Bxf7+ {[%clk 0:02:10]}  Kf8 {[%clk 0:00:16]} 19. Bxg6 {[%clk 0:02:10]}  Kg8 {[%clk 0:00:09]} 20. Bf7+ {[%clk 0:01:47]}  Kf8 {[%clk 0:00:08]} 21. Bc4 {[%clk 0:01:48]}  Nb6 {[%clk 0:00:06]} 22. Nh7+ {[%clk 0:01:44]}  Ke8 {[%clk 0:00:04]} 23. Nxf6+ {[%clk 0:01:45]}  Bxf6 {[%clk 0:00:04]} 24. Qh5+ {[%clk 0:01:44]}  Kd8 {[%clk 0:00:03]} 25. Qg6 {[%clk 0:01:38]}  Nxc4 {[%clk 0:00:03]} 26. bxc4 {[%clk 0:01:39]}  Bg7 {[%clk 0:00:02]} 27. Rf7 {[%clk 0:01:38]}  Qe8 {[%clk 0:00:02]} 28. Qxg7 {[%clk 0:01:37]}  Be6 {[%clk 0:00:02]} 29. Rxb7 {[%clk 0:01:36]}  Rc8 {[%clk 0:00:02]} 30. Rd1 {[%clk 0:01:34]}  Bxc4 {[%clk 0:00:02]} 31. d3 {[%clk 0:01:31]}  Be6 {[%clk 0:00:02]} 32. Rf1 {[%clk 0:01:31]}  Rc7 {[%clk 0:00:02]} 33. Qxc7# {[%clk 0:01:30]} 1-0


[Site "https://www.chess.com"]

[Event "Titled Tuesday Blitz June 6 Early 2023"]
[White "Dubov, Daniil"]
[Black "Nihal Sarin"]
[WhiteFideId "24126055"]
[BlackFideId "25092340"]
[WhiteElo "2793"]
[BlackElo "2689"]
[Result "0-1"]
[Round "10"]
[TimeControl "180+2"]
[Date "2023.06.06"]
[WhiteClock "0:00:03"]
[BlackClock "0:00:45"]
[Board "2"]

1. g3 {[%clk 0:02:30]}  d5 {[%clk 0:02:31]} 2. Nf3 {[%clk 0:02:30]}  Nd7 {[%clk 0:02:30]} 3. d4 {[%clk 0:02:28]}  Nb6 {[%clk 0:02:30]} 4. a4 {[%clk 0:02:24]}  a5 {[%clk 0:02:30]} 5. b3 {[%clk 0:02:20]}  Bf5 {[%clk 0:02:22]} 6. Nh4 {[%clk 0:02:11]}  Bg4 {[%clk 0:02:22]} 7. h3 {[%clk 0:02:08]}  Bh5 {[%clk 0:02:22]} 8. Nd2 {[%clk 0:02:05]}  e6 {[%clk 0:02:21]} 9. Ndf3 {[%clk 0:02:02]}  Nf6 {[%clk 0:02:15]} 10. Bg2 {[%clk 0:01:54]}  Ne4 {[%clk 0:02:15]} 11. O-O {[%clk 0:01:24]}  g5 {[%clk 0:02:15]} 12. g4 {[%clk 0:01:21]}  gxh4 {[%clk 0:02:15]} 13. gxh5 {[%clk 0:01:21]}  Bd6 {[%clk 0:02:05]} 14. c4 {[%clk 0:01:17]}  Nd7 {[%clk 0:01:40]} 15. Qd3 {[%clk 0:00:50]}  c6 {[%clk 0:01:34]} 16. Be3 {[%clk 0:00:47]}  Rg8 {[%clk 0:01:32]} 17. Kh1 {[%clk 0:00:43]}  f5 {[%clk 0:01:32]} 18. Nd2 {[%clk 0:00:29]}  Qf6 {[%clk 0:01:20]} 19. cxd5 {[%clk 0:00:24]}  exd5 {[%clk 0:01:20]} 20. Nxe4 {[%clk 0:00:16]}  fxe4 {[%clk 0:01:15]} 21. Qd2 {[%clk 0:00:16]}  O-O-O {[%clk 0:01:00]} 22. Rg1 {[%clk 0:00:06]}  Bc7 {[%clk 0:01:00]} 23. f4 {[%clk 0:00:03]}  exf3 {[%clk 0:00:55]} 24. exf3 {[%clk 0:00:03]}  Rg3 {[%clk 0:00:48]} 25. Bf2 {[%clk 0:00:03]}  Rxf3 {[%clk 0:00:48]} 26. Bxf3 {[%clk 0:00:03]}  Qxf3+ {[%clk 0:00:49]} 27. Rg2 {[%clk 0:00:03]}  Rg8 {[%clk 0:00:46]} 28. Bxh4 {[%clk 0:00:02]}  Qxh3+ {[%clk 0:00:45]} 29. Kg1 {[%clk 0:00:03]}  Qh2+ {[%clk 0:00:44]} 30. Kf1 {[%clk 0:00:03]}  Qh1+ {[%clk 0:00:45]} 31. Ke2 {[%clk 0:00:03]}  Rxg2+ {[%clk 0:00:45]} 0-1


[Site "https://www.chess.com"]

[Event "Titled Tuesday Blitz June 6 Early 2023"]
[White "Andreikin, Dmitry"]
[Black "Lenderman, Aleksandr"]
[WhiteFideId "4158814"]
[BlackFideId "2021285"]
[WhiteElo "2736"]
[BlackElo "2607"]
[Result "0-1"]
[Round "10"]
[TimeControl "180+2"]
[Date "2023.06.06"]
[WhiteClock "0:00:03"]
[BlackClock "0:00:10"]
[Board "3"]

1. Nf3 {[%clk 0:02:55]}  b6 {[%clk 0:02:58]} 2. e4 {[%clk 0:02:54]}  Bb7 {[%clk 0:02:59]} 3. Nc3 {[%clk 0:02:54]}  e6 {[%clk 0:02:57]} 4. d4 {[%clk 0:02:54]}  Bb4 {[%clk 0:02:57]} 5. Bd3 {[%clk 0:02:54]}  Nf6 {[%clk 0:02:55]} 6. Qe2 {[%clk 0:02:52]}  d5 {[%clk 0:02:54]} 7. e5 {[%clk 0:02:52]}  Ne4 {[%clk 0:02:53]} 8. O-O {[%clk 0:02:52]}  Bxc3 {[%clk 0:02:46]} 9. bxc3 {[%clk 0:02:53]}  Nxc3 {[%clk 0:02:47]} 10. Qe3 {[%clk 0:02:49]}  Ne4 {[%clk 0:02:47]} 11. Ba3 {[%clk 0:02:47]}  Nd7 {[%clk 0:02:35]} 12. c4 {[%clk 0:02:46]}  Nc3 {[%clk 0:02:25]} 13. Ng5 {[%clk 0:02:33]}  dxc4 {[%clk 0:02:04]} 14. Qf4 {[%clk 0:02:32]}  Nf6 {[%clk 0:02:04]} 15. exf6 {[%clk 0:02:26]}  cxd3 {[%clk 0:02:01]} 16. Rfe1 {[%clk 0:02:11]}  Qd5 {[%clk 0:01:37]} 17. f3 {[%clk 0:01:58]}  O-O-O {[%clk 0:01:36]} 18. fxg7 {[%clk 0:01:52]}  Rhg8 {[%clk 0:01:34]} 19. Nxf7 {[%clk 0:01:52]}  Qxd4+ {[%clk 0:01:12]} 20. Qxd4 {[%clk 0:01:49]}  Rxd4 {[%clk 0:01:13]} 21. Bb2 {[%clk 0:01:08]}  d2 {[%clk 0:00:53]} 22. Bxc3 {[%clk 0:01:08]}  dxe1=Q+ {[%clk 0:00:53]} 23. Rxe1 {[%clk 0:01:08]}  Rxg7 {[%clk 0:00:51]} 24. Bxd4 {[%clk 0:01:05]}  Rxf7 {[%clk 0:00:51]} 25. Rxe6 {[%clk 0:01:05]}  Bd5 {[%clk 0:00:52]} 26. Re2 {[%clk 0:01:03]}  Rd7 {[%clk 0:00:52]} 27. Be5 {[%clk 0:00:56]}  c5 {[%clk 0:00:48]} 28. Kf2 {[%clk 0:00:52]}  Kb7 {[%clk 0:00:48]} 29. g4 {[%clk 0:00:51]}  Kc6 {[%clk 0:00:44]} 30. h4 {[%clk 0:00:48]}  Bc4 {[%clk 0:00:45]} 31. Rc2 {[%clk 0:00:47]}  b5 {[%clk 0:00:45]} 32. g5 {[%clk 0:00:44]}  Rd3 {[%clk 0:00:45]} 33. h5 {[%clk 0:00:37]}  Bd5 {[%clk 0:00:41]} 34. Rc3 {[%clk 0:00:34]}  Rxc3 {[%clk 0:00:38]} 35. Bxc3 {[%clk 0:00:35]}  b4 {[%clk 0:00:32]} 36. Be5 {[%clk 0:00:20]}  Bxa2 {[%clk 0:00:31]} 37. Ke3 {[%clk 0:00:20]}  Bb1 {[%clk 0:00:26]} 38. Kf4 {[%clk 0:00:08]}  Kd5 {[%clk 0:00:24]} 39. Ba1 {[%clk 0:00:03]}  c4 {[%clk 0:00:23]} 40. g6 {[%clk 0:00:03]}  hxg6 {[%clk 0:00:22]} 41. h6 {[%clk 0:00:04]}  g5+ {[%clk 0:00:22]} 42. Kxg5 {[%clk 0:00:05]}  c3 {[%clk 0:00:17]} 43. Kf6 {[%clk 0:00:05]}  Kc4 {[%clk 0:00:09]} 44. f4 {[%clk 0:00:05]}  b3 {[%clk 0:00:10]} 45. f5 {[%clk 0:00:05]}  Bxf5 {[%clk 0:00:10]} 46. Kxf5 {[%clk 0:00:05]}  b2 {[%clk 0:00:10]} 47. Bxb2 {[%clk 0:00:03]}  cxb2 {[%clk 0:00:10]} 48. h7 {[%clk 0:00:03]}  b1=Q+ {[%clk 0:00:10]} 0-1


[Site "https://www.chess.com"]

[Event "Titled Tuesday Blitz June 6 Early 2023"]
[White "Deac, Bogdan-Daniel"]
[Black "Naroditsky, Daniel"]
[WhiteFideId "1226380"]
[BlackFideId "2026961"]
[WhiteElo "2644"]
[BlackElo "2632"]
[Result "1/2-1/2"]
[Round "10"]
[TimeControl "180+2"]
[Date "2023.06.06"]
[WhiteClock "0:00:06"]
[BlackClock "0:00:20"]
[Board "5"]

1. e4 {[%clk 0:03:00]}  c5 {[%clk 0:02:59]} 2. Nf3 {[%clk 0:03:00]}  d6 {[%clk 0:03:00]} 3. d4 {[%clk 0:03:01]}  cxd4 {[%clk 0:03:01]} 4. Nxd4 {[%clk 0:03:02]}  Nf6 {[%clk 0:03:02]} 5. Nc3 {[%clk 0:03:02]}  a6 {[%clk 0:03:03]} 6. Bd3 {[%clk 0:03:03]}  g6 {[%clk 0:02:57]} 7. f3 {[%clk 0:03:03]}  Bg7 {[%clk 0:02:58]} 8. Be3 {[%clk 0:03:03]}  O-O {[%clk 0:02:58]} 9. Qd2 {[%clk 0:03:02]}  b5 {[%clk 0:02:59]} 10. a4 {[%clk 0:02:54]}  b4 {[%clk 0:02:58]} 11. Na2 {[%clk 0:02:54]}  a5 {[%clk 0:02:55]} 12. c3 {[%clk 0:02:50]}  e5 {[%clk 0:02:48]} 13. Nb5 {[%clk 0:02:23]}  d5 {[%clk 0:02:39]} 14. cxb4 {[%clk 0:02:02]}  Nc6 {[%clk 0:02:21]} 15. exd5 {[%clk 0:01:29]}  Nxd5 {[%clk 0:02:16]} 16. Bc5 {[%clk 0:01:29]}  Ndxb4 {[%clk 0:02:03]} 17. Nxb4 {[%clk 0:01:03]}  Nxb4 {[%clk 0:02:02]} 18. Be4 {[%clk 0:00:54]}  Qxd2+ {[%clk 0:02:02]} 19. Kxd2 {[%clk 0:00:54]}  Rd8+ {[%clk 0:02:02]} 20. Ke2 {[%clk 0:00:51]}  Nd5 {[%clk 0:01:53]} 21. Rhd1 {[%clk 0:00:35]}  Be6 {[%clk 0:01:53]} 22. Bd6 {[%clk 0:00:33]}  Nf4+ {[%clk 0:01:48]} 23. Kf2 {[%clk 0:00:29]}  Rac8 {[%clk 0:01:48]} 24. Bc7 {[%clk 0:00:17]}  Rxd1 {[%clk 0:01:40]} 25. Rxd1 {[%clk 0:00:17]}  Bb3 {[%clk 0:01:40]} 26. Rd8+ {[%clk 0:00:17]}  Rxd8 {[%clk 0:01:40]} 27. Bxd8 {[%clk 0:00:18]}  Bxa4 {[%clk 0:01:40]} 28. Nc3 {[%clk 0:00:19]}  Bd7 {[%clk 0:01:38]} 29. Bxa5 {[%clk 0:00:19]}  f5 {[%clk 0:01:38]} 30. Bc2 {[%clk 0:00:18]}  Ne6 {[%clk 0:01:35]} 31. Bb3 {[%clk 0:00:15]}  Kf8 {[%clk 0:01:36]} 32. Bc4 {[%clk 0:00:14]}  Nd4 {[%clk 0:01:32]} 33. b4 {[%clk 0:00:12]}  Ke8 {[%clk 0:01:27]} 34. b5 {[%clk 0:00:11]}  Bf8 {[%clk 0:01:28]} 35. Bb6 {[%clk 0:00:07]}  Nc2 {[%clk 0:01:23]} 36. Ba7 {[%clk 0:00:04]}  Na3 {[%clk 0:01:14]} 37. Bd3 {[%clk 0:00:04]}  Bd6 {[%clk 0:01:12]} 38. b6 {[%clk 0:00:04]}  Bc5+ {[%clk 0:01:09]} 39. Ke2 {[%clk 0:00:04]}  Bc6 {[%clk 0:01:07]} 40. g4 {[%clk 0:00:03]}  e4 {[%clk 0:00:55]} 41. fxe4 {[%clk 0:00:03]}  fxg4 {[%clk 0:00:56]} 42. e5 {[%clk 0:00:03]}  Bd4 {[%clk 0:00:56]} 43. Be4 {[%clk 0:00:02]}  Bxe4 {[%clk 0:00:52]} 44. Nxe4 {[%clk 0:00:02]}  Nb5 {[%clk 0:00:52]} 45. Nf6+ {[%clk 0:00:02]}  Kf7 {[%clk 0:00:50]} 46. Nxg4 {[%clk 0:00:02]}  h5 {[%clk 0:00:51]} 47. Nf6 {[%clk 0:00:02]}  Bxe5 {[%clk 0:00:43]} 48. Nd7 {[%clk 0:00:02]}  Bxh2 {[%clk 0:00:42]} 49. Bb8 {[%clk 0:00:01]}  Bxb8 {[%clk 0:00:36]} 50. Nxb8 {[%clk 0:00:02]}  Nd6 {[%clk 0:00:35]} 51. Nc6 {[%clk 0:00:02]}  Ke6 {[%clk 0:00:34]} 52. Kf3 {[%clk 0:00:03]}  g5 {[%clk 0:00:33]} 53. Nd4+ {[%clk 0:00:02]}  Ke5 {[%clk 0:00:32]} 54. Nc6+ {[%clk 0:00:02]}  Kf6 {[%clk 0:00:32]} 55. Nd4 {[%clk 0:00:02]}  Nb7 {[%clk 0:00:31]} 56. Nc6 {[%clk 0:00:02]}  Nc5 {[%clk 0:00:31]} 57. Nd4 {[%clk 0:00:02]}  Ke5 {[%clk 0:00:26]} 58. Nc6+ {[%clk 0:00:02]}  Kd5 {[%clk 0:00:26]} 59. Ne7+ {[%clk 0:00:02]}  Ke6 {[%clk 0:00:27]} 60. Nc6 {[%clk 0:00:02]}  Kd5 {[%clk 0:00:25]} 61. Ne7+ {[%clk 0:00:02]}  Kd6 {[%clk 0:00:25]} 62. Nf5+ {[%clk 0:00:02]}  Ke5 {[%clk 0:00:26]} 63. Ng7 {[%clk 0:00:02]}  h4 {[%clk 0:00:25]} 64. Kg4 {[%clk 0:00:02]}  Kf6 {[%clk 0:00:25]} 65. Ne8+ {[%clk 0:00:02]}  Ke7 {[%clk 0:00:22]} 66. Nc7 {[%clk 0:00:02]}  Kd6 {[%clk 0:00:20]} 67. Ne8+ {[%clk 0:00:02]}  Ke7 {[%clk 0:00:19]} 68. Nc7 {[%clk 0:00:02]}  Kf6 {[%clk 0:00:18]} 69. Nd5+ {[%clk 0:00:02]}  Ke5 {[%clk 0:00:17]} 70. Ne3 {[%clk 0:00:03]}  Ke4 {[%clk 0:00:17]} 71. Ng2 {[%clk 0:00:03]}  Nb7 {[%clk 0:00:16]} 72. Nxh4 {[%clk 0:00:03]}  gxh4 {[%clk 0:00:17]} 73. Kxh4 {[%clk 0:00:04]}  Kd5 {[%clk 0:00:18]} 74. Kg5 {[%clk 0:00:05]}  Kc5 {[%clk 0:00:19]} 75. Kf6 {[%clk 0:00:06]}  Kxb6 {[%clk 0:00:20]} 1/2-1/2


[Site "https://www.chess.com"]

[Event "Titled Tuesday Blitz June 6 Early 2023"]
[White "Svane, Rasmus"]
[Black "Duda, Jan-Krzysztof"]
[WhiteFideId "4657101"]
[BlackFideId "1170546"]
[WhiteElo "2601"]
[BlackElo "2783"]
[Result "1-0"]
[Round "10"]
[TimeControl "180+2"]
[Date "2023.06.06"]
[WhiteClock "0:00:18"]
[BlackClock "0:00:01"]
[Board "7"]

1. Nf3 {[%clk 0:03:00]}  b6 {[%clk 0:03:00]} 2. g3 {[%clk 0:03:00]}  Bb7 {[%clk 0:03:00]} 3. Bg2 {[%clk 0:03:00]}  c5 {[%clk 0:02:57]} 4. c4 {[%clk 0:03:00]}  g6 {[%clk 0:02:54]} 5. d4 {[%clk 0:02:57]}  cxd4 {[%clk 0:02:52]} 6. Qxd4 {[%clk 0:02:58]}  Nf6 {[%clk 0:02:52]} 7. O-O {[%clk 0:02:58]}  Nc6 {[%clk 0:02:47]} 8. Qf4 {[%clk 0:02:57]}  Bg7 {[%clk 0:02:40]} 9. Nc3 {[%clk 0:02:58]}  O-O {[%clk 0:02:40]} 10. Rd1 {[%clk 0:02:57]}  Rc8 {[%clk 0:02:38]} 11. b3 {[%clk 0:02:49]}  d6 {[%clk 0:02:17]} 12. Bb2 {[%clk 0:02:47]}  Nd7 {[%clk 0:02:02]} 13. Rd2 {[%clk 0:02:42]}  Nce5 {[%clk 0:01:58]} 14. Rad1 {[%clk 0:02:32]}  Nxf3+ {[%clk 0:01:53]} 15. exf3 {[%clk 0:02:32]}  f5 {[%clk 0:01:19]} 16. Nd5 {[%clk 0:01:50]}  Bxb2 {[%clk 0:01:07]} 17. Rxb2 {[%clk 0:01:51]}  Nf6 {[%clk 0:00:57]} 18. Nxf6+ {[%clk 0:01:32]}  Rxf6 {[%clk 0:00:58]} 19. Re2 {[%clk 0:01:32]}  Qc7 {[%clk 0:00:39]} 20. Qe3 {[%clk 0:01:30]}  Rf7 {[%clk 0:00:31]} 21. f4 {[%clk 0:01:29]}  Bxg2 {[%clk 0:00:31]} 22. Kxg2 {[%clk 0:01:30]}  Qc5 {[%clk 0:00:29]} 23. Qf3 {[%clk 0:01:29]}  Qc6 {[%clk 0:00:29]} 24. Rd5 {[%clk 0:01:26]}  Rc7 {[%clk 0:00:29]} 25. Re6 {[%clk 0:01:22]}  Qd7 {[%clk 0:00:24]} 26. Qe2 {[%clk 0:01:19]}  Kg7 {[%clk 0:00:20]} 27. Rd3 {[%clk 0:01:08]}  Rf6 {[%clk 0:00:19]} 28. Rxf6 {[%clk 0:01:08]}  exf6 {[%clk 0:00:06]} 29. Rd5 {[%clk 0:01:06]}  Rc5 {[%clk 0:00:06]} 30. Rd4 {[%clk 0:01:06]}  Rc8 {[%clk 0:00:04]} 31. Qd3 {[%clk 0:01:05]}  Qc6+ {[%clk 0:00:04]} 32. Rd5 {[%clk 0:00:48]}  Re8 {[%clk 0:00:04]} 33. a4 {[%clk 0:00:46]}  Re6 {[%clk 0:00:05]} 34. h3 {[%clk 0:00:45]}  h5 {[%clk 0:00:05]} 35. Qf3 {[%clk 0:00:44]}  Kh6 {[%clk 0:00:05]} 36. g4 {[%clk 0:00:44]}  Qd7 {[%clk 0:00:02]} 37. gxf5 {[%clk 0:00:43]}  gxf5 {[%clk 0:00:03]} 38. Rxf5 {[%clk 0:00:42]}  Qg7+ {[%clk 0:00:03]} 39. Qg3 {[%clk 0:00:42]}  Qg6 {[%clk 0:00:04]} 40. Qxg6+ {[%clk 0:00:25]}  Kxg6 {[%clk 0:00:05]} 41. Rd5 {[%clk 0:00:26]}  f5 {[%clk 0:00:04]} 42. Kf3 {[%clk 0:00:24]}  h4 {[%clk 0:00:05]} 43. a5 {[%clk 0:00:22]}  bxa5 {[%clk 0:00:04]} 44. Rxa5 {[%clk 0:00:23]}  Re7 {[%clk 0:00:04]} 45. Ra6 {[%clk 0:00:23]}  Rd7 {[%clk 0:00:05]} 46. c5 {[%clk 0:00:24]}  Kf7 {[%clk 0:00:05]} 47. c6 {[%clk 0:00:19]}  Rc7 {[%clk 0:00:05]} 48. Ke3 {[%clk 0:00:20]}  Ke6 {[%clk 0:00:05]} 49. Kd4 {[%clk 0:00:21]}  Rg7 {[%clk 0:00:05]} 50. b4 {[%clk 0:00:20]}  Rc7 {[%clk 0:00:05]} 51. b5 {[%clk 0:00:21]}  Rg7 {[%clk 0:00:06]} 52. Ra1 {[%clk 0:00:19]}  Rg2 {[%clk 0:00:02]} 53. Re1+ {[%clk 0:00:18]}  Kf7 {[%clk 0:00:01]} 54. c7 {[%clk 0:00:18]}  Rg8 {[%clk 0:00:01]} 55. Kd5 {[%clk 0:00:18]} 1-0


[Site "https://www.chess.com"]

[Event "Titled Tuesday Blitz June 6 Early 2023"]
[White "Samadov, Read"]
[Black "Grischuk, Alexander"]
[WhiteFideId "13417444"]
[BlackFideId "4126025"]
[WhiteElo "2355"]
[BlackElo "2721"]
[Result "1-0"]
[Round "10"]
[TimeControl "180+2"]
[Date "2023.06.06"]
[WhiteClock "0:00:04"]
[BlackClock "0:00:02"]
[Board "8"]

1. c4 {[%clk 0:03:00]}  e5 {[%clk 0:02:57]} 2. Nc3 {[%clk 0:03:01]}  d6 {[%clk 0:02:55]} 3. g3 {[%clk 0:02:59]}  f5 {[%clk 0:02:55]} 4. Bg2 {[%clk 0:02:59]}  Nf6 {[%clk 0:02:54]} 5. d3 {[%clk 0:02:59]}  a5 {[%clk 0:02:52]} 6. Nf3 {[%clk 0:02:59]}  Be7 {[%clk 0:02:52]} 7. O-O {[%clk 0:02:59]}  O-O {[%clk 0:02:52]} 8. a3 {[%clk 0:02:59]}  Qe8 {[%clk 0:02:50]} 9. Rb1 {[%clk 0:02:58]}  h6 {[%clk 0:02:44]} 10. b4 {[%clk 0:02:58]}  axb4 {[%clk 0:02:45]} 11. axb4 {[%clk 0:02:58]}  Be6 {[%clk 0:02:45]} 12. b5 {[%clk 0:02:52]}  Nbd7 {[%clk 0:02:42]} 13. Bb2 {[%clk 0:02:48]}  Qh5 {[%clk 0:02:26]} 14. Nd2 {[%clk 0:02:44]}  Rab8 {[%clk 0:02:15]} 15. e4 {[%clk 0:02:41]}  Qg6 {[%clk 0:01:47]} 16. exf5 {[%clk 0:02:37]}  Bxf5 {[%clk 0:01:48]} 17. Nde4 {[%clk 0:02:35]}  Nc5 {[%clk 0:01:47]} 18. Qe2 {[%clk 0:02:19]}  Kh8 {[%clk 0:01:44]} 19. b6 {[%clk 0:02:02]}  c6 {[%clk 0:01:35]} 20. Nxc5 {[%clk 0:01:55]}  dxc5 {[%clk 0:01:34]} 21. Qxe5 {[%clk 0:01:55]}  Rbe8 {[%clk 0:01:13]} 22. Ne4 {[%clk 0:01:46]}  Nxe4 {[%clk 0:01:08]} 23. dxe4 {[%clk 0:01:39]}  Be6 {[%clk 0:01:08]} 24. Qc7 {[%clk 0:01:30]}  Bxc4 {[%clk 0:01:07]} 25. Qxb7 {[%clk 0:01:21]}  Bxf1 {[%clk 0:01:00]} 26. Rxf1 {[%clk 0:01:22]}  Bf6 {[%clk 0:00:58]} 27. Qxc6 {[%clk 0:01:11]}  Rc8 {[%clk 0:00:58]} 28. Qd6 {[%clk 0:01:08]}  Rfd8 {[%clk 0:00:55]} 29. b7 {[%clk 0:01:02]}  Rb8 {[%clk 0:00:55]} 30. Qb6 {[%clk 0:00:59]}  Qf7 {[%clk 0:00:28]} 31. e5 {[%clk 0:00:59]}  Be7 {[%clk 0:00:25]} 32. Qc7 {[%clk 0:00:50]}  Qe6 {[%clk 0:00:24]} 33. Ra1 {[%clk 0:00:45]}  Qd7 {[%clk 0:00:17]} 34. Qb6 {[%clk 0:00:25]}  Qd2 {[%clk 0:00:17]} 35. e6 {[%clk 0:00:15]}  Rf8 {[%clk 0:00:16]} 36. Rf1 {[%clk 0:00:15]}  c4 {[%clk 0:00:11]} 37. Be5 {[%clk 0:00:14]}  c3 {[%clk 0:00:09]} 38. Bxb8 {[%clk 0:00:14]}  Rxb8 {[%clk 0:00:10]} 39. Qc7 {[%clk 0:00:13]}  Qd6 {[%clk 0:00:09]} 40. Qxd6 {[%clk 0:00:11]}  Bxd6 {[%clk 0:00:10]} 41. Rc1 {[%clk 0:00:12]}  Bb4 {[%clk 0:00:09]} 42. e7 {[%clk 0:00:08]}  g5 {[%clk 0:00:06]} 43. Bc6 {[%clk 0:00:08]}  Bxe7 {[%clk 0:00:06]} 44. Rxc3 {[%clk 0:00:09]}  Kg7 {[%clk 0:00:03]} 45. Kg2 {[%clk 0:00:07]}  Rd8 {[%clk 0:00:03]} 46. Rc2 {[%clk 0:00:06]}  Bf6 {[%clk 0:00:02]} 47. Ra2 {[%clk 0:00:06]}  Be5 {[%clk 0:00:03]} 48. Ra8 {[%clk 0:00:04]}  Bb8 {[%clk 0:00:03]} 49. Bd7 {[%clk 0:00:03]}  Kf6 {[%clk 0:00:01]} 50. Bc8 {[%clk 0:00:03]}  Bc7 {[%clk 0:00:02]} 51. b8=Q {[%clk 0:00:04]} 1-0


[Site "https://www.chess.com"]